Cogmind - Beta 11.1 @@@ ROGUE MODE // 2022.04.22 @ 08:08:27 Player: Jamuson Result: Destroyed by as-80167 with Assembled Heavy Rifle Performance ------------- Evolutions (0) 0 Regions Visited (2) 400 Robots Destroyed (28) 140 Value Destroyed (682) 682 Prototype IDs (3) 60 Alien Tech Used (0) 0 Bonus (0) 0 TOTAL SCORE: 1282 Bonus ------- None Cogmind --------- Core Integrity 0/250 Matter 300/300 Energy 250/250 System Corruption 0% Temperature Cool (54) Movement Treading (160) Location -10/Mines Parts ------- > --- POWER (1) -------- Ion Engine > --- PROPULSION (2) --- Light Treads Light Treads > --- UTILITY (2) ------ Large Storage Unit > --- WEAPON (2) ------- Small Laser > --- INVENTORY (15) --- Light Ion Engine Wheel Compact Wheel Heat Sink Large Storage Unit Improved Terrain Scanner Terrain Scan Processor Targeting Computer Grenade Launcher Proton Bomb Trap Proton Bomb Trap Proton Bomb Trap Peak State ------------ > --- POWER ------------ Ion Engine > --- PROPULSION ------- Light Treads Light Treads > --- UTILITY ---------- Large Storage Unit Improved Terrain Scanner > --- WEAPON ----------- Medium Laser Medium Laser > --- INVENTORY -------- Light Ion Engine Light Treads Light Treads Wheel Compact Wheel Large Storage Unit Terrain Scan Processor Targeting Computer Grenade Launcher [Rating: 10] Favorites ----------- Power Ion Engine Engine Ion Engine Propulsion Light Treads Treads Light Treads Leg Aluminum Leg Utility Large Storage Unit Device Improved Terrain Scanner Storage Large Storage Unit Protection Light Armor Plating Weapon Medium Laser Energy Gun Medium Laser Launcher Grenade Launcher Build | -11 -10 -10 ------- Run | Scr Mat Min Slots Evolved . | . . . Power . | . . . Propulsion . | . . . Utility . | . . . Weapon . | . . . Parts Attached 29 | 7 15 7 Power 5 | 1 2 2 Engine 5 | 1 2 2 Core . | . . . Reactor . | . . . Propulsion 9 | 3 4 2 Treads 6 | 2 2 2 Leg 3 | 1 2 . Wheel . | . . . Hover . | . . . Flight . | . . . Utility 5 | 1 3 1 Device 2 | . 2 . Storage 2 | 1 1 . Processor . | . . . Hackware . | . . . Protection 1 | . . 1 Artifact . | . . . Weapon 10 | 2 6 2 Energy Gun 8 | 2 4 2 Energy Cannon . | . . . Ballistic Gun . | . . . Ballistic Cannon . | . . . Launcher 2 | . 2 . Special Weapon . | . . . Impact Weapon . | . . . Slashing Weapon . | . . . Piercing Weapon . | . . . Special Melee Weapon . | . . . Unidentified Prototypes . | . . . Parts Lost 11 | . 4 7 Power 2 | . 1 1 Propulsion 4 | . 2 2 Utility 1 | . . 1 Weapon 4 | . 1 3 Highest Loss Streak 6 | . 2 6 To Critical Strikes . | . . . Average Slot Usage (%) 96 | . 95 97 Engine 13 | . 13 14 Treads 25 | . 24 27 Device 9 | . 12 6 Storage 14 | . 14 14 Protection 3 | . . 6 Energy Gun 27 | . 26 27 Naked Turns . | . . . Heaviest Build 32 | 12 30 32 Greatest Support 40 | 40 40 40 Greatest Overweight (x) 9 | 1 9 1 Average Overweight (x) . | . . . Largest Inventory Capacity 15 | 8 15 15 Average Capacity 14 | 7 14 15 Most Carried 14 | 6 9 14 Average Carried 9 | 3 8 12 Final Capacity 15 | 8 15 15 Final Carried 12 | 6 9 12 Class Distribution -------------------- 96% | Mutant 3% | Scavenger-Mutant Dominant Class ---------------- Mutant | -10/Materials Mutant | -10/Mines Resources | -11 -10 -10 ----------- Run | Scr Mat Min Matter Collected 530 | 169 311 50 Remotely . | . . . Salvage Created 790 | . 515 275 Parts 53 | . 37 16 Haulers Intercepted 2 | . 2 . Recyclers Shooed . | . . . Parts Field Recycled . | . . . Retrieved Matter . | . . . Parts Self-Destructed . | . . . Prevented . | . . . Kills | -11 -10 -10 ------- Run | Scr Mat Min Combat Hostiles Destroyed 19 | . 10 9 Melee 1 | . . 1 Guns 12 | . 5 7 AOE 5 | . 5 . Classes Destroyed 7 | . 6 1 Builder 2 | . 2 . Tunneler 3 | . 3 . Hauler 2 | . 2 . Watcher 3 | . 3 . Swarmer 3 | . 3 . Grunt 15 | . 7 8 Assembled 1 | . . 1 Best Kill Streak 6 | . 6 3 Combat Bots Only 5 | . 5 3 Max Kills in Single Turn 3 | . 3 1 Gunslinging . | . . . Exploded 2 | . 2 . Melee 1 | . . 1 Uniques/NPCs Destroyed . | . . . Combat | -11 -10 -10 -------- Run | Scr Mat Min Damage Taken 1409 | . 565 844 Core 257 | . 71 186 Absorbed by Shields . | . . . Core Remaining (%) 100 | 100 . . Volleys Fired 102 | . 56 46 Largest 2 | . 2 2 Hottest 100 | . 100 100 Shots Fired 176 | . 102 74 Gun 168 | . 94 74 Cannon . | . . . Launcher 8 | . 8 . Special . | . . . Kinetic . | . . . Thermal 126 | . 52 74 Explosive 8 | . 8 . Electromagnetic 42 | . 42 . Robot Hit Streak 10 | . 10 9 Robot Miss Streak 5 | . 5 2 Penetration Max . | . . . Secondary Targets 1 | . . 1 Max Gunslinging Chain 1 | . . 1 Shots Hit Robots 105 | . 54 51 Core Hits 47 | . 28 19 Critical Kills . | . . . Critical Parts Destroyed . | . . . Critical Strikes 6 | . 2 4 Burn 6 | . 2 4 Melee Attacks . | . . . Impact . | . . . Slashing . | . . . Piercing . | . . . Sneak Attacks . | . . . Combat Hostiles . | . . . Follow-up Attacks . | . . . Damage Inflicted 2038 | . 1396 642 Guns 1364 | . 727 637 Cannons . | . . . Explosions 660 | . 660 . Melee . | . . . Ramming 14 | . 9 5 Kinetic . | . . . Thermal 1354 | . 717 637 Explosive 308 | . 308 . Electromagnetic 362 | . 362 . Impact . | . . . Slashing . | . . . Piercing . | . . . Highest Corruption . | . . . Average Corruption . | . . . Corruption Purged . | . . . Corruption Blocked . | . . . Overload Shots . | . . . Overflow Damage 136 | . 136 . Projectiles . | . . . Explosions 136 | . 136 . Melee . | . . . Knockbacks . | . . . Impact . | . . . Kinetic . | . . . Secondary . | . . . Self-Inflicted Damage 138 | . 138 . Shots 3 | . 3 . Rammed 6 | . 5 1 Targets Rammed 7 | . 5 2 Kicked . | . . . Crushed 1 | . . 1 Highest Temperature 412 | . 238 412 Average Temperature 136 | . 85 193 Received Heat Transfer 594 | . 183 411 Effects 13 | . 4 9 Shutdowns 3 | . . 3 Energy Bleed 2 | . . 2 Interference 5 | . 4 1 Short Circuit 1 | . . 1 Damage (minor) 1 | . . 1 Damage (major) 1 | . . 1 Siege Activations . | . . . Robots Corrupted . | . . . Combat Hostiles . | . . . Parts Fried 4 | . 4 . Impact Corruptions . | . . . Robots Melted 1 | . . 1 Combat Hostiles 1 | . . 1 Parts Melted 5 | . 1 4 Heat Transferred 3512 | . 1471 2041 Parts Sabotaged . | . . . Parts Stolen . | . . . Parts Stripped . | . . . Power Chain Reactions 3 | . 3 . Missiles Intercepted . | . . . Alert | -11 -10 -10 ------- Run | Scr Mat Min Peak Influence 296 | . 296 126 Initial 96 | . . 96 Average 117 | . 186 53 Maximum Alert Level 1 | . 1 . Low Security (%) 77 | 100 54 100 Level 1 22 | . 45 . Level 2 . | . . . Level 3 . | . . . Level 4 . | . . . Level 5 . | . . . High Security . | . . . Max Security . | . . . Squads Dispatched 2 | . 2 . Investigation 2 | . 2 . Extermination . | . . . Reinforcement . | . . . Assault . | . . . Garrison . | . . . Intercept . | . . . Searches Triggered . | . . . Construction Impeded . | . . . Haulers Reinforced . | . . . Active Scanning Responses . | . . . Cargo Convoy Interrupts . | . . . Stealth | -11 -10 -10 --------- Run | Scr Mat Min Distress Signals . | . . . Communications Jammed . | . . . Distress Signals . | . . . Times Spotted 31 | . 19 12 Peak Tracking Total 5 | . 5 3 Tactical Retreats . | . . . Traps | -11 -10 -10 ------- Run | Scr Mat Min Traps Triggered 1 | . 1 . Indirectly . | . . . Trap Hack Attempts . | . . . Triggered . | . . . Disarmed . | . . . Reprogrammed . | . . . Reused . | . . . Traps Extracted . | . . . Installed . | . . . Triggered . | . . . Most Traps Carried 3 | . . 3 Machines | -11 -10 -10 ---------- Run | Scr Mat Min Machines Disabled 2 | . 2 . Max in Single Turn 2 | . 2 . Machines Sabotaged . | . . . Garrisons Compromised . | . . . Overloaded Fab Kills . | . . . Hacking | -11 -10 -10 --------- Run | Scr Mat Min Machines Accessed 3 | . 3 . Terminals 3 | . 3 . Fabricators . | . . . Repair Stations . | . . . Recycling Units . | . . . Scanalyzers . | . . . Garrison Access . | . . . Total Hacks 9 | . 9 . Successful 4 | . 4 . Failed 5 | . 5 . Catastrophic 1 | . 1 . Database Lockouts . | . . . Manual 2 | . 2 . Terminals 9 | . 9 . Fabricators . | . . . Repair Stations . | . . . Recycling Units . | . . . Scanalyzers . | . . . Garrison Access . | . . . Terminal Hacks 4 | . 4 . Prototype ID Bank 2 | . 2 . Alert Level 1 | . 1 . Zone Layout 1 | . 1 . Fabricator Hacks . | . . . Repair Station Hacks . | . . . Recycling Unit Hacks . | . . . Scanalyzer . | . . . Garrison Access Hacks . | . . . Unauthorized Hacks . | . . . Terminals . | . . . Fabricators . | . . . Repair Stations . | . . . Recycling Units . | . . . Scanalyzers . | . . . Garrison Access . | . . . Data Cores Recovered . | . . . Used . | . . . Hacking Detections 3 | . 3 . Full Trace Events 1 | . 1 . Feedback Events . | . . . Feedback Blocked . | . . . Robot Schematics Acquired . | . . . Robots Built . | . . . Authchips . | . . . Time . | . . . Total Robot Build Rating . | . . . Part Schematics Acquired . | . . . Parts Built . | . . . Authchips . | . . . Time . | . . . Total Part Build Rating . | . . . Parts Repaired . | . . . Time . | . . . Parts Recycled . | . . . Recycled Matter . | . . . Retrieved Matter . | . . . Retrieved Components . | . . . Parts Scanalyzed . | . . . Part Schematics Acquired . | . . . Parts Damaged . | . . . Bothacking | -11 -10 -10 ------------ Run | Scr Mat Min Used RIF Installer . | . . . Robots Hacked . | . . . Non-combat . | . . . Combat . | . . . Robot Hacks Applied . | . . . Relay Couplers Released . | . . . Fabnet Peak Effective % . | . . . Robots Rewired . | . . . Allies Hacked . | . . . Hacks Repelled . | . . . Allies | -11 -10 -10 -------- Run | Scr Mat Min Total Allies . | . . . Largest Group . | . . . Highest-Rated Group . | . . . Highest-Rated Ally . | . . . Total Orders . | . . . Ally Attacks . | . . . Total Damage . | . . . Kills . | . . . Allies Corrupted . | . . . Allies Melted . | . . . Intel | -11 -10 -10 ------- Run | Scr Mat Min Robot Analysis Total . | . . . Derelict Logs Recovered . | . . . Drone Launches . | . . . Drone Recoveries . | . . . Exploration | -11 -10 -10 ------------- Run | Scr Mat Min Turns Passed 2069 | 86 1022 961 Spaces Moved 831 | 45 476 310 Core 4 | 3 1 . Treads 799 | 31 458 310 Legs 28 | 11 17 . Wheels . | . . . Hover . | . . . Flight . | . . . Fastest Speed 50 | 50 160 160 Average Speed 166 | 158 171 160 Slowest Speed 500 | 190 500 240 Overloaded Moves . | . . . Propulsion Burnouts . | . . . Robots Hopped . | . . . Cave-ins Triggered . | . . . Exploration Rate (%) 42 | 3 80 44 Regions Visited 2 Branch Regions 1 Pre-discovered Areas . | . . . Known Exits Taken . | . . . Unknown Exits Taken 2 | 1 1 . Scrap Searched . | . . . Spaces Dug 6 | . 6 . Terrain Destroyed 73 | . 73 . Melee . | . . . Projectile . | . . . AOE 73 | . 73 . Terrain Rammed . | . . . Walls Destroyed . | . . . Machines Disabled . | . . . Actions | -11 -10 -10 --------- Run | Scr Mat Min Total 1325 | 57 573 695 Wait 335 | . 10 325 Move 829 | 44 475 310 Hop . | . . . Pick Up 17 | 5 7 5 Fast Attach 13 | 7 4 2 Attach 7 | . 4 3 Detach 1 | 1 . . Swap 9 | . 7 2 Drop 5 | . 5 . Fire 102 | . 56 46 Melee . | . . . Ram . | . . . Kick . | . . . Crush 7 | . 5 2 Escape Stasis . | . . . Rewire . | . . . Trap . | . . . Miscellaneous . | . . . Route ------- -11/Scrapyard -10/Materials (discovered 4 exits: [*Mat x2] / [*Min x2]) -10/Mines (discovered 1 exit: [*Mat]) History --------- Turn | Location | Event 17 | -11/Scrapyard | Discovered new exit (range 15) 87 | -11/Scrapyard | Entered Materials 186 | -10/Materials | Discovered new exit (range 14) 311 | -10/Materials | Build established: Mutant 347 | -10/Materials | Discovered new exit (range 15) 619 | -10/Materials | Discovered new exit (range 15) 762 | -10/Materials | Discovered new exit (range 15) 1109 | -10/Materials | Entered Mines 1232 | -10/Mines | Core integrity fell below 50% 1253 | -10/Mines | Discovered new exit (range 4) 1454 | -10/Mines | Found a hidden stash of uninstalled traps 1515 | -10/Mines | Excavation squad dispatched 1515 | -10/Mines | A large section of the Mines collapsed 1765 | -10/Mines | Excavation squad dispatched 2014 | -10/Mines | Core integrity fell below 20% 2039 | -10/Mines | Lost 6 parts (1p2n1u2w) 2070 | -10/Mines | Destroyed by as-80167 with Assembled Heavy Rifle Last Messages --------------- 02025_ U-05 Engineer lays Concrete. 02026_ T-07 Excavator is excavating. 02027_ U-05 Engineer lays Concrete. 02028_ T-07 Excavator is excavating. 02028_ G-34 Mercenary destroyed. 02028_ as-47265 sneak attacks. 02028_ T-07 Excavator system corrupted by crushing effect. 02029_ T-07 Excavator system terminally corrupted. 02029_ U-05 Engineer lays Concrete. 02030_ T-07 Excavator is excavating. 02032_ U-05 Engineer lays Concrete. 02032_ Acquired 37 matter. 02032_ T-07 Excavator is excavating. 02033_ T-07 Excavator destroyed. 02035_ Acquired 3 matter. 02037_ T-07 Excavator is excavating. 02047_ T-07 Excavator destroyed. 02048_ G-34 Mercenary destroyed. 02059_ as-47265 destroyed. 02065_ Sml. Laser destroyed. Map ----- +----------------------------------------------------+ | ??????????????????????????#?? | | ??????????????????#?????????? | | ???????#????????????????????? | | ?????????#??????#########???# | | ?????????######## ## ##### | | ?#????????# #?# | | ??????????# #??# | | ??????????# ##### ##?## | | ??????????# #???# #???? | | ??????????# #???## # #???? | | ??????#???# ###??#### ##### | | ???#####?## ##?#??# ## # | | #?## #### ###??# # | | ??# #?# | | ??# ## ##?#### | | ??# ### #######?????#= | | ??# #?## #??????#????# | | ??# ##??# #?????#?????## | | ??# #?#?# #??#?????????#### | | ### #???# ???????????????# | | ?## #???# ?? ??#????????# | | ??# #???######??? ???????? | | ??# ##?????????????#???????? | | ??# #??????????????????????? | | ??# %#???????"??????????????? | | ??#!@#?????? ???????????????? | | ??#a%#?????? "??????????????? | | ??#=|####??????????? ????#??? | | ??#=*!=!#???????#???????????? | | ??#####%#???????????????????? | | ??????#%#???????????????????? | | ??????#=#?####????????????#?? | | ??????#%###!%##?????????????? | | ?????##!==%!%=#?????????????? | | ?????# "! %==!#?????????????? | | ?????# %[% ##?????????????? | | ?????##%=%!=##??????????????? | | ??#???# %%| ##??????????????? | | ??????# ! " #?#????????????? | | ?????# " " #??????????????? | | ????# ##??????????????? | | ????# " #???????????????? | | #???## ???????????????? | | ?????##" = ???????????????? | | ?????##%|%! "??????????????? | | ??????# ! ##??????????????? | | ??????# #######?????????????? | | ??????## ##???????????????? | | ???????? #?????????????????? | | ????????????????????????????? | +----------------------------------------------------+ Best States ------------- Heat Dissipation 25 Energy Generation 10 Energy Capacity 250 Matter Stores 300 Matter Capacity 300 Sight Range 16 Terrain Scan Range 16 Terrain Scan Density 10 Armor Coverage 150 Evasion (%) 45 Recoil Reduction 2 Item Schematics ----------------- None Robot Schematics ------------------ None Fabricated ------------ Nothing Alien Tech Used ----------------- None Achievements -------------- None Challenges ------------ None Game ------ Seed EtherialFireCompactor Manual? 0 Play Time 00:22:46 Cumulative 123.9 hours Start 2022.04.22 @ 07:47:35 End 2022.04.22 @ 08:08:27 Sessions 1 Manual Loads 0 Difficulty Rogue Special Mode None Game No. 41 Rogue 34 Adventurer 0 Explorer 7 Win Type - Total 1 Types 0/0/1/0/0/0/0/0/0 Lore% 54 Gallery% 50 Achievement% 43 Wizard Run 0 Options --------- ASCII 0 Keyboard 0 Movement Mouse Keybinds 0 Fullscreen 1 Font 18/SmallcapsGlow Map View 76x50 Tactical HUD 1 Map Filters NONE Filters NONE Steam 1 RUN: 496c50b0-1aa8-4595-8a21-e31e71f8e894